[Event "Early-Titled-Tuesday-Blitz-May-14-2024"]
[Site "Chess.com"]
[Date "2024.05.14"]
[Round "6"]
[White "vasblesk"]
[Black "Flaccidmoves"]
[Result "1-0"]
[WhiteElo "2791"]
[BlackElo "2420"]
[TimeControl "180+1"]
[EndTime "9:08:47 PDT"]
[Termination "vasblesk won by resignation"]

1. Nf3 {[%clk 0:03:00.9]} 1... d5 {[%clk 0:03:00]} 2. c4 {[%clk 0:03:00.6]} 2...
d4 {[%clk 0:02:59.2]} 3. b4 {[%clk 0:03:00.7]} 3... f6 {[%clk 0:02:56.4]} 4. d3
{[%clk 0:02:51.9]} 4... e5 {[%clk 0:02:55.8]} 5. a3 {[%clk 0:02:48.3]} 5... c5
{[%clk 0:02:55]} 6. b5 {[%clk 0:02:47.5]} 6... Bd6 {[%clk 0:02:53]} 7. a4 {[%clk
0:02:47.6]} 7... Ne7 {[%clk 0:02:52.1]} 8. g3 {[%clk 0:02:46.5]} 8... O-O {[%clk
0:02:51.7]} 9. Bg2 {[%clk 0:02:46.7]} 9... Be6 {[%clk 0:02:49.5]} 10. O-O {[%clk
0:02:44.5]} 10... Nd7 {[%clk 0:02:49]} 11. a5 {[%clk 0:02:43.9]} 11... Rb8
{[%clk 0:02:46.8]} 12. Nbd2 {[%clk 0:02:31.4]} 12... Kh8 {[%clk 0:02:29.7]} 13.
Nb3 {[%clk 0:02:30.3]} 13... f5 {[%clk 0:02:25.5]} 14. e3 {[%clk 0:02:20.3]}
14... Nf6 {[%clk 0:02:16.9]} 15. exd4 {[%clk 0:02:17]} 15... exd4 {[%clk
0:02:11.5]} 16. Re1 {[%clk 0:02:12.2]} 16... Qd7 {[%clk 0:02:10.1]} 17. Bf4
{[%clk 0:02:04.7]} 17... Ng6 {[%clk 0:01:54.1]} 18. Ne5 {[%clk 0:01:48.7]} 18...
Nxe5 {[%clk 0:01:46.4]} 19. Bxe5 {[%clk 0:01:49.6]} 19... b6 {[%clk 0:01:42.8]}
20. Bc6 {[%clk 0:01:34]} 20... Qc7 {[%clk 0:01:38.1]} 21. Bxd4 {[%clk
0:01:29.8]} 21... Bg8 {[%clk 0:01:35.8]} 22. Bxf6 {[%clk 0:01:20.1]} 22... Rxf6
{[%clk 0:01:34.5]} 23. Qf3 {[%clk 0:01:17.3]} 23... f4 {[%clk 0:01:32.6]} 24. g4
{[%clk 0:01:17.5]} 24... Rg6 {[%clk 0:01:30.1]} 25. Be4 {[%clk 0:01:13.5]} 25...
Rh6 {[%clk 0:01:27.9]} 26. axb6 {[%clk 0:01:09.4]} 26... axb6 {[%clk 0:01:27]}
27. Ra8 {[%clk 0:01:07.1]} 27... Rxa8 {[%clk 0:01:25.5]} 28. Bxa8 {[%clk
0:01:08]} 28... Qd8 {[%clk 0:00:56.5]} 29. Bd5 {[%clk 0:00:59.6]} 29... Bxd5
{[%clk 0:00:53.6]} 30. Qxd5 {[%clk 0:00:58.5]} 30... f3 {[%clk 0:00:53.6]} 31.
g5 {[%clk 0:00:24.6]} 31... Rg6 {[%clk 0:00:48.5]} 32. h4 {[%clk 0:00:20.5]}
32... Qc8 {[%clk 0:00:30.6]} 33. Qxf3 {[%clk 0:00:18.3]} 33... h6 {[%clk
0:00:26.8]} 34. Nd2 {[%clk 0:00:06.9]} 34... hxg5 {[%clk 0:00:25.3]} 35. h5
{[%clk 0:00:07.5]} 35... g4 {[%clk 0:00:23.7]} 36. Qf7 {[%clk 0:00:07.4]} 36...
Rf6 {[%clk 0:00:11.3]} 37. Re8+ {[%clk 0:00:07.7]} 37... Kh7 {[%clk 0:00:12]}
38. Qg6+ {[%clk 0:00:07.6]} 38... Rxg6 {[%clk 0:00:08]} 39. hxg6+ {[%clk
0:00:08.5]} 1-0

[Event "Early-Titled-Tuesday-Blitz-May-14-2024"]
[Site "Chess.com"]
[Date "2024.05.14"]
[Round "6"]
[White "KorolDimitriy75"]
[Black "fandebobbyfischer"]
[Result "0-1"]
[WhiteElo "2416"]
[BlackElo "2705"]
[TimeControl "180+1"]
[EndTime "9:08:48 PDT"]
[Termination "fandebobbyfischer won on time"]

1. d4 {[%clk 0:03:00.9]} 1... Nf6 {[%clk 0:02:59.2]} 2. c4 {[%clk 0:03:00.9]}
2... e6 {[%clk 0:02:59.8]} 3. Nc3 {[%clk 0:03:01.4]} 3... b6 {[%clk 0:03:00.5]}
4. Qc2 {[%clk 0:03:01.3]} 4... Bb7 {[%clk 0:03:01.1]} 5. e4 {[%clk 0:03:01.5]}
5... Bb4 {[%clk 0:03:01.6]} 6. e5 {[%clk 0:03:01.9]} 6... Ne4 {[%clk 0:03:01.8]}
7. Nf3 {[%clk 0:03:02.2]} 7... d5 {[%clk 0:02:56.3]} 8. Bd3 {[%clk 0:02:53.8]}
8... Bxc3+ {[%clk 0:02:51.6]} 9. bxc3 {[%clk 0:02:53.7]} 9... O-O {[%clk
0:02:52]} 10. O-O {[%clk 0:02:44.1]} 10... c5 {[%clk 0:02:40.3]} 11. Ba3 {[%clk
0:02:09.5]} 11... Nd7 {[%clk 0:02:23.1]} 12. Nd2 {[%clk 0:01:48.7]} 12... Nxd2
{[%clk 0:02:22.3]} 13. Qxd2 {[%clk 0:01:49.6]} 13... dxc4 {[%clk 0:02:22.1]} 14.
Bxc4 {[%clk 0:01:48.7]} 14... Nxe5 {[%clk 0:02:22.1]} 15. Bb5 {[%clk 0:00:57.6]}
15... Qd5 {[%clk 0:02:06.8]} 16. f3 {[%clk 0:00:54.8]} 16... Rfd8 {[%clk
0:02:07.2]} 17. Qe2 {[%clk 0:00:19.7]} 17... cxd4 {[%clk 0:02:05.9]} 18. cxd4
{[%clk 0:00:18.2]} 18... Qxd4+ {[%clk 0:01:42.4]} 19. Kh1 {[%clk 0:00:18.5]}
19... Ng6 {[%clk 0:01:42.7]} 20. Rad1 {[%clk 0:00:16.2]} 20... Qh4 {[%clk
0:01:24.6]} 21. Bb2 {[%clk 0:00:15.6]} 21... Bd5 {[%clk 0:01:18.2]} 22. Bd3
{[%clk 0:00:14.3]} 22... Nf4 {[%clk 0:01:03]} 23. Qe5 {[%clk 0:00:13.9]} 23...
f6 {[%clk 0:01:03.1]} 24. Qe3 {[%clk 0:00:13.6]} 24... Nxd3 {[%clk 0:01:01.1]}
25. Rxd3 {[%clk 0:00:11.4]} 25... Bc4 {[%clk 0:00:58.6]} 26. Rxd8+ {[%clk
0:00:10.9]} 26... Rxd8 {[%clk 0:00:59.5]} 27. Re1 {[%clk 0:00:11.2]} 27... Rd3
{[%clk 0:00:53.5]} 28. Qg1 {[%clk 0:00:09.2]} 28... Rd2 {[%clk 0:00:50.5]} 29.
Ba1 {[%clk 0:00:07.8]} 29... Bd5 {[%clk 0:00:45.7]} 30. Rd1 {[%clk 0:00:05.4]}
30... Rxa2 {[%clk 0:00:23.4]} 31. Qe3 {[%clk 0:00:05.2]} 31... Qf2 {[%clk
0:00:21.4]} 32. Qxf2 {[%clk 0:00:04.5]} 32... Rxf2 {[%clk 0:00:22.3]} 33. h3
{[%clk 0:00:04.4]} 33... Ra2 {[%clk 0:00:21.5]} 34. Rc1 {[%clk 0:00:04.4]} 34...
Kf7 {[%clk 0:00:21.8]} 35. Kg1 {[%clk 0:00:04.4]} 35... Kg6 {[%clk 0:00:19.8]}
36. Bd4 {[%clk 0:00:04.5]} 36... b5 {[%clk 0:00:20.1]} 37. Rc7 {[%clk
0:00:03.9]} 37... b4 {[%clk 0:00:20]} 38. Bxa7 {[%clk 0:00:02.7]} 38... b3
{[%clk 0:00:19.8]} 39. Bd4 {[%clk 0:00:03]} 39... b2 {[%clk 0:00:19.7]} 0-1

[Event "Early-Titled-Tuesday-Blitz-May-14-2024"]
[Site "Chess.com"]
[Date "2024.05.14"]
[Round "6"]
[White "jbking07"]
[Black "carloseduar100"]
[Result "1-0"]
[WhiteElo "2383"]
[BlackElo "2210"]
[TimeControl "180+1"]
[EndTime "9:08:49 PDT"]
[Termination "jbking07 won by resignation"]

1. e4 {[%clk 0:03:00.9]} 1... e6 {[%clk 0:02:59.9]} 2. d4 {[%clk 0:03:00.3]}
2... d5 {[%clk 0:03:00.8]} 3. Nc3 {[%clk 0:03:00.6]} 3... Nf6 {[%clk 0:03:01.1]}
4. e5 {[%clk 0:03:00.6]} 4... Nfd7 {[%clk 0:03:01.4]} 5. f4 {[%clk 0:03:01.1]}
5... c5 {[%clk 0:03:01.9]} 6. Nf3 {[%clk 0:03:00.7]} 6... Nc6 {[%clk 0:03:02.8]}
7. Be3 {[%clk 0:03:00.7]} 7... Qb6 {[%clk 0:03:03.2]} 8. Na4 {[%clk 0:03:00.1]}
8... Qc7 {[%clk 0:03:02.7]} 9. Qd2 {[%clk 0:02:54.6]} 9... Nxd4 {[%clk
0:03:02.7]} 10. Nxd4 {[%clk 0:02:53.5]} 10... cxd4 {[%clk 0:03:02.7]} 11. Bxd4
{[%clk 0:02:51.4]} 11... a6 {[%clk 0:03:01.7]} 12. Bd3 {[%clk 0:02:44.6]} 12...
b5 {[%clk 0:03:00.8]} 13. Nc3 {[%clk 0:02:44.2]} 13... Bb7 {[%clk 0:03:01]} 14.
a3 {[%clk 0:02:38.9]} 14... g6 {[%clk 0:03:01.3]} 15. O-O {[%clk 0:02:37.1]}
15... Bg7 {[%clk 0:03:01.6]} 16. Qe3 {[%clk 0:02:34.3]} 16... O-O {[%clk
0:03:01.9]} 17. Rf3 {[%clk 0:02:24]} 17... Rae8 {[%clk 0:02:36]} 18. Rh3 {[%clk
0:02:00]} 18... f6 {[%clk 0:02:33.6]} 19. Qg3 {[%clk 0:01:39]} 19... fxe5 {[%clk
0:02:28.5]} 20. Qh4 {[%clk 0:01:37.4]} 20... exd4 {[%clk 0:02:07.3]} 21. Qxh7+
{[%clk 0:01:35.7]} 21... Kf7 {[%clk 0:02:08.1]} 22. Qxg6+ {[%clk 0:01:30.2]}
22... Ke7 {[%clk 0:02:07.8]} 23. Qxg7+ {[%clk 0:01:29.2]} 23... Kd8 {[%clk
0:02:08.5]} 24. Qxd4 {[%clk 0:01:22.6]} 24... Qxf4 {[%clk 0:02:08.5]} 25. Qxf4
{[%clk 0:01:18.6]} 25... Rxf4 {[%clk 0:02:08.6]} 26. Rf1 {[%clk 0:01:18.6]}
26... Rxf1+ {[%clk 0:02:08.4]} 27. Kxf1 {[%clk 0:01:18.8]} 27... e5 {[%clk
0:02:09.1]} 28. Bf5 {[%clk 0:01:13.8]} 28... e4 {[%clk 0:01:57.3]} 29. Rh7
{[%clk 0:01:09.2]} 29... Re7 {[%clk 0:01:56.7]} 30. Rxe7 {[%clk 0:01:01.2]}
30... Kxe7 {[%clk 0:01:57.6]} 31. Bxd7 {[%clk 0:01:00.1]} 31... Kxd7 {[%clk
0:01:57.4]} 32. Ke2 {[%clk 0:01:01]} 32... d4 {[%clk 0:01:57.6]} 33. Nd1 {[%clk
0:00:59.7]} 33... Ke6 {[%clk 0:01:57.8]} 34. c3 {[%clk 0:00:58.1]} 34... d3+
{[%clk 0:01:45.7]} 35. Ke3 {[%clk 0:00:57.7]} 35... Ke5 {[%clk 0:01:46.2]} 36.
Nf2 {[%clk 0:00:55.8]} 36... Bd5 {[%clk 0:01:46.2]} 37. h4 {[%clk 0:00:51.9]}
37... a5 {[%clk 0:01:42.4]} 38. b4 {[%clk 0:00:51.4]} 38... axb4 {[%clk
0:01:41.2]} 39. axb4 {[%clk 0:00:51.1]} 39... d2 {[%clk 0:01:13.3]} 40. g3
{[%clk 0:00:42.8]} 40... Bb3 {[%clk 0:00:47.5]} 41. Kxd2 {[%clk 0:00:41.8]}
41... Kd5 {[%clk 0:00:45.8]} 42. Ke3 {[%clk 0:00:39.1]} 42... Bc2 {[%clk
0:00:46]} 43. h5 {[%clk 0:00:36.5]} 43... Ke5 {[%clk 0:00:45.9]} 44. g4 {[%clk
0:00:35]} 44... Kf6 {[%clk 0:00:46.2]} 45. Nxe4+ {[%clk 0:00:34.1]} 45... Kg7
{[%clk 0:00:46.5]} 46. Kf4 {[%clk 0:00:33.7]} 46... Kh7 {[%clk 0:00:46.6]} 47.
Nd6 {[%clk 0:00:33.5]} 47... Bd3 {[%clk 0:00:46]} 48. g5 {[%clk 0:00:33.8]}
48... Kg7 {[%clk 0:00:46.1]} 49. Ne8+ {[%clk 0:00:29.4]} 49... Kh7 {[%clk
0:00:46.4]} 50. Nd6 {[%clk 0:00:28.6]} 50... Kg7 {[%clk 0:00:46.6]} 51. Ke5
{[%clk 0:00:29.2]} 51... Kh7 {[%clk 0:00:46.4]} 52. Kd4 {[%clk 0:00:29.2]} 52...
Be2 {[%clk 0:00:46.9]} 53. h6 {[%clk 0:00:29.2]} 53... Kg6 {[%clk 0:00:47.1]}
54. Nxb5 {[%clk 0:00:29]} 54... Bxb5 {[%clk 0:00:45.3]} 55. c4 {[%clk
0:00:29.3]} 55... Bd7 {[%clk 0:00:41.8]} 56. b5 {[%clk 0:00:28.3]} 56... Bf5
{[%clk 0:00:42.3]} 57. b6 {[%clk 0:00:28.1]} 57... Kxg5 {[%clk 0:00:43.1]} 58.
b7 {[%clk 0:00:28.1]} 1-0

[Event "Early-Titled-Tuesday-Blitz-May-14-2024"]
[Site "Chess.com"]
[Date "2024.05.14"]
[Round "6"]
[White "AttilaTurzo"]
[Black "ViktoriyaTarasova"]
[Result "0-1"]
[WhiteElo "2461"]
[BlackElo "2331"]
[TimeControl "180+1"]
[EndTime "9:08:52 PDT"]
[Termination "ViktoriyaTarasova won by resignation"]

1. e4 {[%clk 0:03:00.9]} 1... e5 {[%clk 0:02:59.7]} 2. Nf3 {[%clk 0:02:58.3]}
2... Nc6 {[%clk 0:02:59.9]} 3. Bb5 {[%clk 0:02:57.7]} 3... Nf6 {[%clk
0:02:59.9]} 4. d3 {[%clk 0:02:57.2]} 4... Bc5 {[%clk 0:02:59.8]} 5. O-O {[%clk
0:02:56.2]} 5... Nd4 {[%clk 0:02:57.4]} 6. Nxd4 {[%clk 0:02:54.6]} 6... Bxd4
{[%clk 0:02:57.6]} 7. c3 {[%clk 0:02:52.2]} 7... Bb6 {[%clk 0:02:57.4]} 8. Nd2
{[%clk 0:02:49.7]} 8... c6 {[%clk 0:02:56.7]} 9. Ba4 {[%clk 0:02:48.9]} 9... O-O
{[%clk 0:02:55.4]} 10. Nf3 {[%clk 0:02:46.8]} 10... Re8 {[%clk 0:02:50.6]} 11.
h3 {[%clk 0:02:47]} 11... h6 {[%clk 0:02:50.1]} 12. Re1 {[%clk 0:02:45.5]} 12...
Bc7 {[%clk 0:02:50.1]} 13. d4 {[%clk 0:02:37.7]} 13... d6 {[%clk 0:02:46.1]} 14.
Bc2 {[%clk 0:02:17.8]} 14... Be6 {[%clk 0:02:42.6]} 15. Be3 {[%clk 0:02:16.3]}
15... Qe7 {[%clk 0:02:41.8]} 16. Qe2 {[%clk 0:02:10.7]} 16... b5 {[%clk
0:02:30.8]} 17. b3 {[%clk 0:02:09.6]} 17... a5 {[%clk 0:02:29.9]} 18. a4 {[%clk
0:02:03.5]} 18... Rab8 {[%clk 0:02:14.1]} 19. axb5 {[%clk 0:01:55.9]} 19... Rxb5
{[%clk 0:02:13.6]} 20. c4 {[%clk 0:01:53.3]} 20... Rb7 {[%clk 0:02:04.5]} 21.
dxe5 {[%clk 0:01:33.7]} 21... dxe5 {[%clk 0:02:03.7]} 22. Qd2 {[%clk 0:01:31.8]}
22... Nd7 {[%clk 0:01:45.1]} 23. Qc3 {[%clk 0:01:22.1]} 23... f6 {[%clk
0:01:30.4]} 24. Red1 {[%clk 0:01:12.6]} 24... Reb8 {[%clk 0:01:15.6]} 25. Nh4
{[%clk 0:01:11.8]} 25... Nc5 {[%clk 0:01:07.4]} 26. Ng6 {[%clk 0:01:10.6]} 26...
Qf7 {[%clk 0:01:00.4]} 27. Bxc5 {[%clk 0:01:07.6]} 27... Qxg6 {[%clk 0:01:00.3]}
28. Kh1 {[%clk 0:01:01.6]} 28... Qf7 {[%clk 0:00:41.2]} 29. Bd6 {[%clk
0:00:55.6]} 29... Ra8 {[%clk 0:00:20.4]} 30. Bc5 {[%clk 0:00:46.3]} 30... f5
{[%clk 0:00:16.9]} 31. exf5 {[%clk 0:00:42.7]} 31... Bxf5 {[%clk 0:00:17.6]} 32.
f3 {[%clk 0:00:30.1]} 32... Bxc2 {[%clk 0:00:17]} 33. Qxc2 {[%clk 0:00:30.4]}
33... Rab8 {[%clk 0:00:17.7]} 34. Ra3 {[%clk 0:00:27]} 34... Qe6 {[%clk
0:00:16.2]} 35. Kg1 {[%clk 0:00:16.7]} 35... Re8 {[%clk 0:00:15.8]} 36. Qe4
{[%clk 0:00:14.8]} 36... Qf6 {[%clk 0:00:14.3]} 37. Rd3 {[%clk 0:00:13.9]} 37...
Reb8 {[%clk 0:00:13.4]} 38. Kh2 {[%clk 0:00:12]} 38... Qe6 {[%clk 0:00:13.6]}
39. Qg4 {[%clk 0:00:10.5]} 39... e4+ {[%clk 0:00:12.3]} 40. Kh1 {[%clk
0:00:01.9]} 40... Qxg4 {[%clk 0:00:12.3]} 41. hxg4 {[%clk 0:00:01.9]} 41... exd3
{[%clk 0:00:12.9]} 0-1

[Event "Early-Titled-Tuesday-Blitz-May-14-2024"]
[Site "Chess.com"]
[Date "2024.05.14"]
[Round "6"]
[White "KanalSzachowy"]
[Black "ChessBliss09"]
[Result "0-1"]
[WhiteElo "2394"]
[BlackElo "2245"]
[TimeControl "180+1"]
[EndTime "9:08:52 PDT"]
[Termination "ChessBliss09 won by resignation"]

1. e4 {[%clk 0:03:00.9]} 1... e5 {[%clk 0:02:59.8]} 2. Nf3 {[%clk 0:03:00.1]}
2... Nc6 {[%clk 0:03:00.1]} 3. Bc4 {[%clk 0:03:00.1]} 3... Bc5 {[%clk
0:02:58.7]} 4. c3 {[%clk 0:03:00.1]} 4... Nf6 {[%clk 0:02:57.3]} 5. d4 {[%clk
0:02:59.9]} 5... exd4 {[%clk 0:02:57.6]} 6. e5 {[%clk 0:02:58.7]} 6... d5 {[%clk
0:02:45.9]} 7. Bb5 {[%clk 0:02:58.8]} 7... Ne4 {[%clk 0:02:44.8]} 8. cxd4 {[%clk
0:02:55.5]} 8... Bb4+ {[%clk 0:02:44.7]} 9. Nbd2 {[%clk 0:02:52.4]} 9... Bxd2+
{[%clk 0:02:41.5]} 10. Bxd2 {[%clk 0:02:51.1]} 10... Bg4 {[%clk 0:02:39]} 11.
Bxc6+ {[%clk 0:02:30.4]} 11... bxc6 {[%clk 0:02:38.6]} 12. Qa4 {[%clk
0:02:29.7]} 12... Qd7 {[%clk 0:02:19.1]} 13. Bb4 {[%clk 0:01:41.1]} 13... Bxf3
{[%clk 0:02:04.7]} 14. gxf3 {[%clk 0:01:40.6]} 14... Ng5 {[%clk 0:02:04.7]} 15.
Qa3 {[%clk 0:01:40.9]} 15... Ne6 {[%clk 0:02:02.5]} 16. O-O-O {[%clk 0:01:40]}
16... Rb8 {[%clk 0:01:36.9]} 17. Rhg1 {[%clk 0:01:29.6]} 17... c5 {[%clk
0:01:29.4]} 18. Bxc5 {[%clk 0:01:25.5]} 18... Rb5 {[%clk 0:01:22.6]} 19. Bxa7
{[%clk 0:00:32.7]} 19... Qc6+ {[%clk 0:01:03.3]} 20. Kb1 {[%clk 0:00:32.4]}
20... Qb7 {[%clk 0:01:03.5]} 21. Bc5 {[%clk 0:00:29.7]} 21... Nxc5 {[%clk
0:01:00.2]} 22. dxc5 {[%clk 0:00:19]} 22... O-O {[%clk 0:01:00.2]} 23. Rd4
{[%clk 0:00:09.3]} 23... Rb8 {[%clk 0:00:52.9]} 24. b3 {[%clk 0:00:08.8]} 24...
Ra8 {[%clk 0:00:47.5]} 25. Ra4 {[%clk 0:00:07.8]} 25... Rxa4 {[%clk 0:00:38.7]}
26. Qxa4 {[%clk 0:00:07.9]} 26... g6 {[%clk 0:00:35.8]} 27. Qd4 {[%clk
0:00:07.1]} 27... Rb4 {[%clk 0:00:28.7]} 28. Qc3 {[%clk 0:00:05.4]} 28... d4
{[%clk 0:00:28]} 29. Qd2 {[%clk 0:00:03.7]} 29... Qb5 {[%clk 0:00:17.6]} 30. Rg4
{[%clk 0:00:01.9]} 30... Qxc5 {[%clk 0:00:17.1]} 31. Kb2 {[%clk 0:00:02.4]}
31... Rb8 {[%clk 0:00:08.3]} 32. Qxd4 {[%clk 0:00:02.1]} 32... Qe7 {[%clk
0:00:06]} 33. Qc4 {[%clk 0:00:00.8]} 33... Qxe5+ {[%clk 0:00:05.3]} 34. Rd4
{[%clk 0:00:01.4]} 34... Rd8 {[%clk 0:00:04]} 35. f4 {[%clk 0:00:01.9]} 35...
Qxd4+ {[%clk 0:00:03.4]} 36. Qxd4 {[%clk 0:00:01.2]} 36... Rxd4 {[%clk
0:00:04.3]} 0-1

[Event "Early-Titled-Tuesday-Blitz-May-14-2024"]
[Site "Chess.com"]
[Date "2024.05.14"]
[Round "6"]
[White "margarita_2703"]
[Black "tarno17"]
[Result "0-1"]
[WhiteElo "2336"]
[BlackElo "2180"]
[TimeControl "180+1"]
[EndTime "9:08:53 PDT"]
[Termination "tarno17 won by checkmate"]

1. e4 {[%clk 0:03:00.9]} 1... c5 {[%clk 0:02:59.6]} 2. Nf3 {[%clk 0:02:53.6]}
2... e6 {[%clk 0:02:58.6]} 3. b3 {[%clk 0:02:17.2]} 3... d5 {[%clk 0:02:49.7]}
4. exd5 {[%clk 0:02:18]} 4... Qxd5 {[%clk 0:02:49.4]} 5. Nc3 {[%clk 0:02:09.9]}
5... Qd8 {[%clk 0:02:40.4]} 6. Bb2 {[%clk 0:02:10.8]} 6... Nf6 {[%clk
0:02:40.1]} 7. Bb5+ {[%clk 0:02:04]} 7... Bd7 {[%clk 0:02:39.4]} 8. Bxd7+ {[%clk
0:02:04.2]} 8... Nbxd7 {[%clk 0:02:40.3]} 9. O-O {[%clk 0:02:04.9]} 9... a6
{[%clk 0:02:33.4]} 10. d4 {[%clk 0:02:03.8]} 10... Be7 {[%clk 0:02:29.9]} 11. d5
{[%clk 0:01:58.5]} 11... exd5 {[%clk 0:02:24.9]} 12. Nxd5 {[%clk 0:01:59.4]}
12... Nxd5 {[%clk 0:02:09]} 13. Qxd5 {[%clk 0:02:00.3]} 13... O-O {[%clk
0:02:01.9]} 14. Qxb7 {[%clk 0:01:56.5]} 14... Bf6 {[%clk 0:01:46.8]} 15. Bxf6
{[%clk 0:01:53.5]} 15... Nxf6 {[%clk 0:01:47.7]} 16. c4 {[%clk 0:01:51.4]} 16...
Qd3 {[%clk 0:01:43.3]} 17. Rfd1 {[%clk 0:01:50.8]} 17... Qg6 {[%clk 0:01:39.8]}
18. Qc6 {[%clk 0:01:49.2]} 18... Rfc8 {[%clk 0:01:36]} 19. Qd6 {[%clk
0:01:48.9]} 19... h6 {[%clk 0:01:33.5]} 20. Qg3 {[%clk 0:01:48.6]} 20... Qc2
{[%clk 0:01:28.8]} 21. Rd2 {[%clk 0:01:47.7]} 21... Qc3 {[%clk 0:01:25.7]} 22.
Re1 {[%clk 0:01:43.8]} 22... Re8 {[%clk 0:01:13.5]} 23. Rde2 {[%clk 0:01:27.5]}
23... Rxe2 {[%clk 0:01:03.7]} 24. Rxe2 {[%clk 0:01:28.4]} 24... Rd8 {[%clk
0:00:48.9]} 25. Ne1 {[%clk 0:01:25.2]} 25... Qc1 {[%clk 0:00:45.2]} 26. Qe3
{[%clk 0:01:23.8]} 26... Qa1 {[%clk 0:00:38.3]} 27. Rd2 {[%clk 0:01:22.1]} 27...
Re8 {[%clk 0:00:36.5]} 28. Qxe8+ {[%clk 0:01:03.6]} 28... Nxe8 {[%clk 0:00:36]}
29. Kf1 {[%clk 0:01:04.5]} 29... Nf6 {[%clk 0:00:27.9]} 30. f3 {[%clk
0:01:04.6]} 30... Qe5 {[%clk 0:00:26.6]} 31. g3 {[%clk 0:01:03.1]} 31... Qf5
{[%clk 0:00:25.3]} 32. Kf2 {[%clk 0:01:02.5]} 32... Ne4+ {[%clk 0:00:25.2]} 33.
Ke3 {[%clk 0:00:59.8]} 33... Nxd2 {[%clk 0:00:24]} 34. Kxd2 {[%clk 0:01:00.7]}
34... Qh5 {[%clk 0:00:21.5]} 35. h4 {[%clk 0:01:00.4]} 35... Qe5 {[%clk
0:00:21.1]} 36. g4 {[%clk 0:01:00.5]} 36... Qb2+ {[%clk 0:00:21.1]} 37. Nc2
{[%clk 0:00:58.9]} 37... Qxa2 {[%clk 0:00:21.5]} 38. Kc3 {[%clk 0:00:59.8]}
38... Qb1 {[%clk 0:00:21.4]} 39. b4 {[%clk 0:01:00]} 39... cxb4+ {[%clk
0:00:20.5]} 40. Nxb4 {[%clk 0:01:00.9]} 40... Qc1+ {[%clk 0:00:20.5]} 41. Nc2
{[%clk 0:01:01.2]} 41... a5 {[%clk 0:00:20]} 42. c5 {[%clk 0:01:01.5]} 42... Qf4
{[%clk 0:00:17.4]} 43. Nd4 {[%clk 0:00:59.7]} 43... Qc7 {[%clk 0:00:17]} 44. c6
{[%clk 0:00:59.9]} 44... Qb6 {[%clk 0:00:15.9]} 45. Kc4 {[%clk 0:01:00.1]} 45...
a4 {[%clk 0:00:16.2]} 46. Kd5 {[%clk 0:01:00.6]} 46... a3 {[%clk 0:00:15.9]} 47.
Nc2 {[%clk 0:00:58.8]} 47... a2 {[%clk 0:00:15.1]} 48. Kd6 {[%clk 0:00:58.5]}
48... Qd8+ {[%clk 0:00:15.6]} 49. Kc5 {[%clk 0:00:58.4]} 49... Qc7 {[%clk
0:00:15.3]} 50. Kb5 {[%clk 0:00:56.5]} 50... Qe5+ {[%clk 0:00:13.3]} 51. Ka6
{[%clk 0:00:55.7]} 51... Qc3 {[%clk 0:00:12.7]} 52. Kb7 {[%clk 0:00:54.9]} 52...
Qxc2 {[%clk 0:00:12.4]} 53. c7 {[%clk 0:00:55.8]} 53... Qxc7+ {[%clk 0:00:12.3]}
54. Kxc7 {[%clk 0:00:55.5]} 54... a1=Q {[%clk 0:00:13.2]} 55. Kb7 {[%clk
0:00:56.4]} 55... Qf1 {[%clk 0:00:13.5]} 56. Kc7 {[%clk 0:00:57.3]} 56... Qxf3
{[%clk 0:00:14.1]} 57. Kb6 {[%clk 0:00:57.5]} 57... Qxg4 {[%clk 0:00:14.8]} 58.
Kc7 {[%clk 0:00:58.4]} 58... Qxh4 {[%clk 0:00:15.5]} 59. Kb6 {[%clk 0:00:59.3]}
59... Qc4 {[%clk 0:00:15.9]} 60. Kb7 {[%clk 0:00:59.6]} 60... f5 {[%clk
0:00:14.7]} 61. Kb6 {[%clk 0:01:00.5]} 61... f4 {[%clk 0:00:14.8]} 62. Ka7
{[%clk 0:01:00.7]} 62... Qb3 {[%clk 0:00:14]} 63. Ka6 {[%clk 0:00:59.8]} 63...
f3 {[%clk 0:00:13.9]} 64. Ka5 {[%clk 0:01:00.7]} 64... f2 {[%clk 0:00:13.7]} 65.
Ka6 {[%clk 0:00:59.6]} 65... f1=Q+ {[%clk 0:00:13.7]} 66. Ka5 {[%clk 0:01:00.5]}
66... Qa1# {[%clk 0:00:14.2]} 0-1

[Event "Early-Titled-Tuesday-Blitz-May-14-2024"]
[Site "Chess.com"]
[Date "2024.05.14"]
[Round "6"]
[White "martinez_95"]
[Black "Matols"]
[Result "0-1"]
[WhiteElo "2168"]
[BlackElo "2349"]
[TimeControl "180+1"]
[EndTime "9:08:53 PDT"]
[Termination "Matols won by resignation"]

1. e4 {[%clk 0:03:00.9]} 1... c6 {[%clk 0:03:00.2]} 2. d4 {[%clk 0:02:59]} 2...
d5 {[%clk 0:03:00.8]} 3. Nc3 {[%clk 0:02:50.6]} 3... dxe4 {[%clk 0:03:00.1]} 4.
Nxe4 {[%clk 0:02:49.2]} 4... Nf6 {[%clk 0:03:00.7]} 5. Nxf6+ {[%clk 0:02:43]}
5... exf6 {[%clk 0:03:01.6]} 6. c3 {[%clk 0:02:41.2]} 6... Bd6 {[%clk
0:03:01.3]} 7. h3 {[%clk 0:02:39.5]} 7... O-O {[%clk 0:03:00.9]} 8. Bd3 {[%clk
0:02:39.8]} 8... Re8+ {[%clk 0:03:01]} 9. Ne2 {[%clk 0:02:39.9]} 9... h5 {[%clk
0:02:58.8]} 10. Be3 {[%clk 0:02:39.6]} 10... Nd7 {[%clk 0:02:48.9]} 11. Bc2
{[%clk 0:02:38]} 11... Nf8 {[%clk 0:02:44]} 12. Qd3 {[%clk 0:02:37.3]} 12... Be6
{[%clk 0:02:41.5]} 13. O-O-O {[%clk 0:02:37.3]} 13... Bxa2 {[%clk 0:02:35.8]}
14. g4 {[%clk 0:02:33.5]} 14... h4 {[%clk 0:02:33.7]} 15. c4 {[%clk 0:02:07.3]}
15... b5 {[%clk 0:02:29.6]} 16. c5 {[%clk 0:01:59.9]} 16... Bc4 {[%clk
0:02:26.9]} 17. Qd2 {[%clk 0:01:51.7]} 17... Bxe2 {[%clk 0:02:24]} 18. Qxe2
{[%clk 0:01:49]} 18... Bf4 {[%clk 0:02:23.9]} 19. Qd3 {[%clk 0:01:46.6]} 19...
Bxe3+ {[%clk 0:02:23.2]} 20. fxe3 {[%clk 0:01:47.5]} 20... a5 {[%clk 0:02:16]}
21. e4 {[%clk 0:01:38.1]} 21... a4 {[%clk 0:02:14.9]} 22. d5 {[%clk 0:01:36.4]}
22... a3 {[%clk 0:02:02.5]} 23. b4 {[%clk 0:01:33]} 23... a2 {[%clk 0:02:00.9]}
24. Kb2 {[%clk 0:01:33.1]} 24... Qe7 {[%clk 0:01:56]} 25. d6 {[%clk 0:01:10.2]}
25... Qe5+ {[%clk 0:01:55.2]} 26. Qc3 {[%clk 0:01:10.2]} 26... Ne6 {[%clk
0:01:25.7]} 27. Ra1 {[%clk 0:00:59.8]} 27... Nd4 {[%clk 0:01:08.1]} 28. Rhd1
{[%clk 0:00:39]} 28... Nxc2 {[%clk 0:01:05.7]} 29. Qxe5 {[%clk 0:00:35.9]} 29...
Rxe5 {[%clk 0:01:03.4]} 30. Kxc2 {[%clk 0:00:35.7]} 30... Rxe4 {[%clk
0:01:03.2]} 31. d7 {[%clk 0:00:34.9]} 31... Rd8 {[%clk 0:00:49.6]} 32. Rxa2
{[%clk 0:00:26.6]} 32... Re2+ {[%clk 0:00:45.9]} 33. Kb1 {[%clk 0:00:21.5]}
33... Rxa2 {[%clk 0:00:36.4]} 34. Kxa2 {[%clk 0:00:22.4]} 34... Kf8 {[%clk
0:00:36.5]} 35. Rd6 {[%clk 0:00:22.4]} 35... Ke7 {[%clk 0:00:36.9]} 36. Rxc6
{[%clk 0:00:22]} 36... Rxd7 {[%clk 0:00:37.1]} 37. Rb6 {[%clk 0:00:21.4]} 37...
Rd2+ {[%clk 0:00:35.8]} 38. Kb1 {[%clk 0:00:21.8]} 38... Rd3 {[%clk 0:00:29.2]}
39. Rxb5 {[%clk 0:00:21.2]} 39... Rxh3 {[%clk 0:00:29.8]} 40. Rb7+ {[%clk
0:00:20.7]} 40... Ke6 {[%clk 0:00:29.9]} 41. c6 {[%clk 0:00:20.5]} 41... Rc3
{[%clk 0:00:28.9]} 42. Rb6 {[%clk 0:00:12.1]} 42... h3 {[%clk 0:00:26.4]} 43. b5
{[%clk 0:00:06.4]} 43... h2 {[%clk 0:00:25.4]} 0-1